bitfinex/quotes_ETHUSD_20220305
["timestamp","ask_amount","ask_price","bid_price","bid_amount"]
[1646455309673,0.0190456,2626.9,2626.7,0.457]
[1646455310629,0.0190456,2626.9,2626.8,1.0]
[1646455310828,0.0190456,2626.9,2626.8,1.457]
[1646455314578,0.08410309,2626.9,2626.8,1.457]
[1646455315281,0.08410309,2626.9,2626.8,2.5305]
[1646455315682,0.08410309,2626.9,2626.8,3.5305]
[1646455316385,0.0155119,2627.3,2626.8,3.5305]
[1646455316386,0.4386289,2628.0,2627.1,0.09853759]
[1646455316597,0.0468985,2628.3,2627.9,5.716]
[1646455316782,0.0468985,2628.3,2628.2,5.716]
[1646455316985,0.0202297,2628.5,2628.2,9.673]
[1646455317183,0.0202297,2628.5,2628.4,5.716]
[1646455317184,0.0019112,2628.5,2628.4,5.716]
[1646455317426,0.0496487,2629.0,2628.5,4.7]
[1646455317627,0.0076448,2629.2,2628.8,5.716]
[1646455317826,0.0076448,2629.2,2629.0,5.716]
[1646455318027,0.0076448,2629.2,2629.1,0.457]
[1646455318227,0.0076448,2629.2,2629.1,0.86678319]
[1646455318628,0.0076448,2629.2,2629.1,1.86678319]
[1646455320231,0.0320506,2629.7,2629.2,3.8]
[1646455320430,0.0320506,2629.7,2629.3,0.457]
[1646455320431,1.56030601,2629.6,2629.3,0.457]
[1646455320831,0.05632484,2629.7,2629.3,2.3590777]
[1646455321078,0.05632484,2629.7,2629.3,3.3101977]
[1646455321284,0.05632484,2629.7,2629.3,4.3101977]
[1646455321782,0.0463802,2629.7,2629.3,4.3101977]
[1646455321981,0.00255075,2629.6,2629.3,4.3101977]
[1646455322685,0.01784035,2629.6,2629.3,4.3101977]
[1646455322884,0.0152896,2629.6,2629.3,4.3101977]
[1646455323085,0.01784037,2629.6,2629.3,4.3101977]
[1646455324087,0.0152896,2629.6,2629.3,4.3101977]
[1646455324288,0.01784037,2629.6,2629.3,4.3101977]
[1646455324487,0.01784037,2629.6,2629.3,7.8101977]
[1646455324693,0.01784037,2629.6,2629.4,5.716]
[1646455324928,0.01784037,2629.6,2629.5,0.457]
[1646455325131,0.0310906,2629.7,2629.6,4.6]
[1646455325327,0.0310906,2629.7,2629.6,6.057]
[1646455325929,0.0310906,2629.7,2629.6,1.457]
[1646455326128,0.0262855,2630.1,2629.7,2.1]
[1646455326329,0.0262855,2630.1,2629.8,0.457]
[1646455327339,1.5602943,2630.0,2629.8,0.457]
[1646455327730,0.0262855,2630.1,2629.8,0.457]
[1646455329170,0.02893718,2630.1,2629.8,0.457]
[1646455330181,0.0262855,2630.1,2629.8,0.457]
[1646455330380,0.02893718,2630.1,2629.8,0.457]
[1646455331283,0.0262855,2630.1,2629.8,0.457]
[1646455331682,0.02893718,2630.1,2629.8,0.457]
[1646455332628,0.0262855,2630.1,2629.8,0.457]
[1646455332823,0.02893718,2630.1,2629.8,0.457]
[1646455333625,0.0262855,2630.1,2629.8,0.457]
[1646455334024,0.02885763,2630.1,2629.8,0.457]
[1646455335029,4.7,2630.0,2629.1,1.0]
[1646455335235,4.7,2630.0,2629.2,0.457]
[1646455335236,16.35096,2630.0,2629.2,0.457]
[1646455335429,18.34,2629.9,2629.1,0.457]
[1646455335628,18.34,2629.9,2628.7,0.19]
[1646455335629,11.65,2629.5,2628.7,0.647]
[1646455335829,11.65,2629.5,2628.7,0.19]
[1646455335830,6.5,2629.4,2628.7,0.19]
[1646455336074,1.17646843,2629.3,2628.7,0.19]
[1646455336275,15.15,2629.2,2628.7,0.19]
[1646455336676,3.5,2629.2,2628.7,0.19]
[1646455337076,3.5,2629.2,2628.3,0.707]
[1646455337275,11.65,2629.1,2628.3,0.457]
[1646455337478,15.15,2629.0,2628.3,0.457]
[1646455337677,15.15,2629.0,2627.7,1.25]
[1646455337678,14.65,2628.8,2627.7,0.25]
[1646455337882,0.86951039,2628.0,2627.8,0.457]
[1646455338277,0.66477421,2627.7,2627.4,4.99393658]
[1646455338477,0.66477421,2627.7,2627.5,0.457]
[1646455339477,0.66477421,2627.7,2627.5,0.407]
[1646455350557,0.66477421,2627.7,2627.6,3.5]
[1646455350757,0.66477421,2627.7,2627.6,7.173]
[1646455351080,0.66477421,2627.7,2627.6,10.673]
[1646455351279,0.00096,2628.6,2627.7,4.7]
[1646455351476,0.00096,2628.6,2628.2,0.99525336]
[1646455351677,0.00096,2628.7,2628.3,0.457]
[1646455351876,0.00096,2628.9,2628.3,0.457]
[1646455352076,0.01000492,2628.8,2628.3,0.457]
[1646455352484,0.01000492,2628.8,2628.3,3.957]
[1646455352682,0.01000492,2628.8,2628.3,0.457]
[1646455352882,0.01000492,2628.8,2628.3,1.457]
[1646455353081,0.00096,2629.5,2628.3,3.957]
[1646455353283,0.01000518,2629.1,2628.3,3.957]
[1646455353485,0.01000518,2629.1,2628.3,4.957]
[1646455353687,0.01000518,2629.1,2628.3,5.3375]
[1646455353886,0.01000518,2629.1,2628.3,11.0535]
[1646455354087,0.00096,2629.3,2628.3,11.0535]
[1646455354383,1.56137846,2629.5,2628.4,5.716]
[1646455354584,1.56137846,2629.5,2628.6,0.95131]
[1646455354585,0.01000503,2629.2,2628.6,0.95131]
[1646455354824,0.01000503,2629.2,2628.7,1.4083176]
[1646455355029,0.01000503,2629.2,2628.7,4.9083176]
[1646455355228,0.01000503,2629.2,2628.7,5.9083176]
[1646455355428,0.00096,2629.5,2628.7,5.9083176]
[1646455355728,0.01096496,2629.5,2628.7,5.9083176]
[1646455355932,0.01096496,2629.5,2628.7,1.457]
[1646455356334,0.01096496,2629.5,2628.7,0.457]
[1646455356530,1.11913106,2629.5,2628.7,0.457]
[1646455356730,1.56042295,2629.4,2628.7,0.457]
[1646455357935,13.21042295,2629.4,2628.7,0.457]
[1646455358134,11.65,2629.2,2628.7,0.457]
[1646455358335,1.10733609,2628.4,2628.3,0.457]
[1646455369685,1.10733609,2628.4,2628.3,5.85965]
[1646455369933,1.10733609,2628.4,2628.3,6.85965]
[1646455370231,1.10733609,2628.4,2628.3,7.85965]
[1646455371937,0.01000553,2628.9,2628.4,4.7]
[1646455372134,0.00096,2629.5,2628.5,3.957]
[1646455372336,0.01000553,2628.9,2628.5,5.90832]
[1646455372537,1.56122686,2629.5,2628.7,4.7]
[1646455372538,0.00096,2629.5,2628.7,4.7]
[1646455372738,0.00096,2629.6,2628.9,0.3805]
[1646455372937,0.00250057,2629.7,2629.0,0.457]
[1646455373336,0.0136304,2629.8,2629.3,1.16340207]
[1646455373591,0.0136304,2629.8,2629.4,0.457]
[1646455373784,0.0136304,2629.8,2629.5,0.457]
[1646455373984,0.0136304,2629.8,2629.6,0.457]
[1646455373985,1.56017454,2629.7,2629.6,0.457]
[1646455374785,1.56022167,2629.7,2629.6,0.457]
[1646455376584,1.55822167,2629.7,2629.6,0.457]
[1646455378425,0.63591653,2629.1,2628.6,4.75]
[1646455378629,0.63591653,2629.1,2628.7,0.457]
[1646455379434,0.63591653,2629.1,2628.8,1.21234139]
[1646455379634,0.63591653,2629.1,2628.9,0.457]
[1646455379839,0.63856666,2629.1,2628.9,0.457]
[1646455380535,0.63591653,2629.1,2628.9,0.457]
[1646455380736,0.63856667,2629.1,2628.9,0.457]
[1646455381774,0.63591653,2629.1,2628.9,1.45449062]
[1646455381977,0.63851699,2629.1,2628.9,1.45449062]
[1646455382980,0.63591653,2629.1,2628.9,1.45449062]
[1646455383181,0.63851699,2629.1,2628.9,1.45449062]
[1646455384183,0.63591653,2629.1,2629.0,3.5]
[1646455384384,0.63851699,2629.1,2629.0,1.457]
[1646455384827,0.63851699,2629.1,2629.0,0.457]
[1646455385034,0.63851699,2629.1,2629.0,3.957]
[1646455385232,0.63851699,2629.1,2629.0,5.9081485]
[1646455385432,0.63591653,2629.1,2629.0,5.9081485]
[1646455385632,0.63591653,2629.1,2629.0,2.4081485]
[1646455385832,0.00248723,2629.2,2629.1,4.7]
[1646455386033,0.00248723,2629.2,2629.1,5.5375]
[1646455386234,0.00248723,2629.2,2629.1,7.5375]
[1646455386434,0.00248723,2629.2,2629.1,7.70861103]
[1646455386633,0.0136304,2629.8,2629.7,0.90556638]
[1646455386836,0.0136304,2629.8,2629.7,1.36256638]
[1646455388588,0.0136304,2629.8,2629.7,0.457]
[1646455389886,0.0136304,2629.8,2628.8,0.25]
[1646455390088,0.0136304,2629.8,2628.9,0.457]
[1646455390884,0.0145904,2629.8,2628.9,0.457]
[1646455391685,0.00226318,2629.5,2628.9,0.457]
[1646455392532,0.87727781,2629.6,2628.9,0.457]
[1646455392730,0.87631781,2629.6,2628.9,0.457]
[1646455392934,0.00225965,2629.3,2628.9,0.457]
[1646455393833,0.0136304,2629.8,2628.9,0.457]
[1646455393834,0.0145904,2629.8,2628.9,0.457]
[1646455394034,0.00227526,2629.2,2628.9,0.457]
[1646455395035,0.0136304,2629.8,2628.9,1.4082404]
[1646455395235,0.00227527,2629.2,2628.9,1.4082404]
[1646455395637,0.00227527,2629.2,2628.9,2.3594304]
[1646455396273,0.0136304,2629.8,2628.9,2.3594304]
[1646455396479,0.00227608,2629.2,2629.1,0.95113]
[1646455396677,0.00227608,2629.2,2629.1,1.40813]
[1646455397476,0.00096,2629.5,2629.1,1.40813]
[1646455397677,0.00227514,2629.3,2629.1,1.40813]
[1646455397981,3.8,2629.2,2629.1,1.40813]
[1646455398180,3.8,2629.2,2629.1,0.457]
[1646455402131,3.55,2629.2,2629.1,0.457]
[1646455405885,3.55,2629.2,2628.8,1.0]
[1646455406086,3.55,2629.2,2628.4,2.49627788]
[1646455406087,7.05,2629.2,2628.7,0.457]
[1646455406287,1.56038291,2629.1,2628.7,0.457]
[1646455407329,1.56265796,2629.1,2628.7,0.457]
[1646455407535,3.5,2629.0,2628.7,0.457]
[1646455407730,1.46038291,2628.9,2628.7,0.457]
[1646455408132,1.46038291,2628.9,2628.2,0.25222191]
[1646455408133,15.15227505,2629.1,2628.2,0.25222191]
[1646455408339,3.5,2629.0,2628.3,0.457]
[1646455408535,15.15,2629.0,2628.3,0.457]
[1646455408735,3.5,2629.0,2628.3,0.457]
[1646455409536,15.15,2629.0,2628.3,0.457]
[1646455410638,11.8402,2629.1,2628.3,0.457]
[1646455410842,11.84262316,2629.1,2628.3,0.457]
[1646455411087,0.19262316,2629.1,2628.3,0.457]
[1646455411878,11.8402,2629.1,2628.3,0.457]
[1646455412077,11.65254026,2629.1,2628.3,0.457]
[1646455412977,11.65,2629.1,2628.3,0.457]
[1646455413177,11.65254026,2629.1,2628.3,0.457]
[1646455413382,0.00254026,2629.1,2628.3,0.457]
[1646455414179,15.3902,2629.2,2628.3,0.457]
[1646455414383,0.00254026,2629.1,2628.3,0.457]
[1646455415441,15.3902,2629.2,2628.3,0.457]
[1646455415640,0.00232648,2629.1,2628.3,0.457]
[1646455416641,3.7402,2629.2,2628.3,0.457]
[1646455416842,0.00232648,2629.1,2628.3,0.457]
[1646455417743,3.7402,2629.2,2628.3,0.457]
[1646455417944,15.3902,2629.2,2628.3,0.457]
[1646455418242,0.00232648,2629.1,2628.3,0.457]
[1646455418979,15.3902,2629.2,2628.3,0.457]
[1646455419180,0.00226294,2629.1,2628.3,0.457]
[1646455419983,11.8402,2629.0,2628.2,0.25218644]
[1646455420183,11.65,2628.8,2627.8,0.457]
[1646455420584,11.65,2628.8,2628.2,0.00218644]
[1646455420783,11.8402,2628.8,2628.2,0.00218644]
[1646455420983,1.14098764,2628.0,2627.7,0.002]
[1646455421189,11.65,2627.9,2627.7,0.002]
[1646455421492,12.79098764,2628.0,2627.7,0.002]
[1646455421883,12.74098764,2628.0,2627.7,0.002]
[1646455422341,14.65,2627.8,2627.1,0.3803]
[1646455422642,11.65,2627.6,2626.7,2.49627788]
[1646455422840,11.65,2627.4,2626.7,2.49627788]
[1646455423540,3.5,2627.7,2626.4,1.02027607]
[1646455423541,12.72584892,2627.3,2626.4,1.02027607]
[1646455423744,11.65,2627.6,2626.5,0.457]
[1646455423939,3.5,2627.7,2626.5,0.457]
[1646455424141,3.5,2627.9,2626.9,0.00222546]
[1646455424341,2.306,2628.0,2626.9,0.45922546]
[1646455424740,11.65,2627.8,2626.9,0.45922546]
[1646455424947,0.86510541,2627.7,2626.9,1.4357727]
[1646455425346,0.86510541,2627.7,2627.3,0.00222512]
[1646455426178,0.86510541,2627.7,2626.9,1.4357727]
[1646455426581,0.86510541,2627.7,2627.4,0.00221664]
[1646455427381,11.65,2627.6,2626.9,0.457]
[1646455427581,0.86510541,2627.7,2626.9,0.457]
[1646455427779,0.86510541,2627.7,2627.4,0.0022166]
[1646455427980,11.65,2627.6,2627.4,0.0022166]
[1646455428179,0.86510541,2627.7,2627.4,0.0022166]
[1646455428680,0.86510541,2627.7,2626.9,1.6509078]
[1646455428884,4.66510541,2627.7,2627.4,0.0022166]
[1646455429932,4.66510541,2627.7,2626.9,1.6509078]
[1646455430132,4.66510541,2627.7,2627.4,0.00221293]
[1646455430734,16.31510541,2627.7,2627.4,0.00221293]
[1646455431134,16.31510541,2627.7,2626.9,0.457]
[1646455431335,16.31510541,2627.7,2627.4,0.00221293]
[1646455432234,16.31510541,2627.7,2626.5,0.457]
[1646455432633,16.31510541,2627.7,2627.4,0.00221293]
[1646455433035,11.65,2627.5,2627.4,0.00221293]
[1646455433234,12.8402,2627.5,2627.4,0.00221293]
[1646455433434,12.8402,2627.5,2626.2,0.707]
[1646455433683,0.1902,2627.4,2626.2,0.707]
[1646455433882,1.0929757,2626.8,2626.2,0.707]
[1646455434088,1.0929757,2626.8,2626.2,0.457]
[1646455434482,1.0429757,2626.8,2626.2,0.457]
[1646455434683,12.6929757,2626.8,2626.2,0.457]
[1646455434883,1.0429757,2626.8,2626.2,0.457]
[1646455435788,0.1902,2627.2,2626.2,0.457]
[1646455435987,11.8402,2627.2,2626.2,0.457]
[1646455436188,0.1902,2627.2,2626.2,0.457]
[1646455436387,0.1902,2627.2,2626.3,3.5]
[1646455436594,4.1616,2627.3,2626.3,3.5]
[1646455436595,4.1616,2627.3,2626.4,0.457]
[1646455436789,4.1616,2627.3,2626.7,1.18105536]
[1646455436988,1.06173826,2627.5,2626.7,1.18105536]
[1646455437190,1.06173826,2627.5,2626.8,0.457]
[1646455437450,1.06173826,2627.5,2626.5,4.5]
[1646455437451,1.06173826,2627.5,2626.9,0.457]
[1646455437651,1.06173826,2627.5,2627.0,0.457]
[1646455437850,1.06173826,2627.5,2627.1,0.457]
[1646455437851,0.87153826,2627.5,2627.1,0.457]
[1646455438451,0.1902,2627.4,2627.2,0.00253941]
[1646455439452,0.1902,2627.4,2626.8,0.457]
[1646455439652,0.1902,2627.4,2627.2,0.00253941]
[1646455440663,20.32153826,2627.5,2626.2,0.457]
[1646455440857,20.32153826,2627.5,2627.2,0.00241592]
[1646455441098,0.00345233,2626.8,2626.2,0.457]
[1646455441887,1.01675015,2626.6,2626.2,0.457]
[1646455442584,0.00345233,2626.8,2626.2,0.457]
[1646455444588,0.00345233,2626.8,2626.3,3.8805]
[1646455444830,0.00345233,2626.8,2626.4,1.78963]
[1646455445034,0.00345233,2626.8,2626.7,1.22335132]
[1646455445234,0.00345233,2626.8,2626.7,1.68035132]
[1646455446134,0.00345233,2626.8,2626.7,0.457]
[1646455447434,0.00345233,2626.8,2626.7,1.52520756]
[1646455450486,0.00345233,2626.8,2626.7,5.02520756]
[1646455450687,0.00345233,2626.8,2626.7,5.40570756]
[1646455450889,0.00345233,2626.8,2626.7,6.40570756]
[1646455451887,0.00345233,2626.8,2626.7,2.90570756]
[1646455452530,3.75345233,2626.9,2626.8,2.4]
[1646455452730,3.75345233,2626.9,2626.8,0.457]
[1646455456784,3.75345233,2626.9,2626.7,0.00215271]
[1646455457492,3.75345233,2626.9,2625.9,0.407]
[1646455457893,0.98167547,2626.5,2625.9,0.407]
[1646455458891,0.98167547,2626.5,2626.1,0.00221701]
[1646455459941,0.98167547,2626.5,2625.9,0.407]
[1646455460142,0.98167547,2626.5,2626.2,0.00221692]
[1646455460840,12.63167547,2626.5,2626.2,0.00221692]
[1646455461041,12.63167547,2626.5,2625.4,0.457]
[1646455461240,11.65,2626.3,2625.4,0.457]
[1646455461439,11.65,2626.3,2626.2,0.00220253]
[1646455461639,0.00314911,2626.0,2625.3,0.25]
[1646455461840,0.88316578,2625.9,2625.1,0.457]
[1646455462843,11.65,2625.8,2625.1,0.457]
[1646455463684,0.97541973,2625.5,2625.1,0.457]
[1646455464082,12.62541973,2625.5,2625.1,0.457]
[1646455464684,12.62541973,2625.5,2624.5,0.707]
[1646455464883,0.97127561,2624.9,2624.5,0.707]
[1646455465086,0.97127561,2624.9,2624.5,0.457]
[1646455465294,0.97127561,2624.9,2623.9,1.957]
[1646455465295,12.62127561,2624.9,2623.9,1.957]
[1646455466385,0.32869996,2625.0,2623.9,1.957]
[1646455466386,0.96407402,2624.5,2623.9,1.957]
[1646455468439,12.61407402,2624.5,2623.9,1.957]
[1646455469441,16.41407402,2624.5,2623.9,1.957]
[1646455469840,3.8,2624.5,2624.1,0.00264654]
[1646455470041,3.8,2624.5,2624.2,0.457]
[1646455470840,3.8,2624.5,2624.3,0.8974269]
[1646455471084,3.8,2624.5,2624.4,0.457]
[1646455476144,3.8,2624.5,2624.4,3.957]
[1646455476346,3.8,2624.5,2624.4,4.957]
[1646455476946,2.73517682,2624.5,2624.4,4.957]
[1646455477144,0.1905,2625.6,2624.5,0.49997668]
[1646455477345,0.1905,2625.6,2624.8,0.95271]
[1646455477545,3.8834,2625.9,2624.9,3.957]
[1646455477546,0.1904,2625.8,2624.9,3.957]
[1646455477945,0.00314911,2626.0,2624.9,4.957]
[1646455477946,0.1904,2625.9,2624.9,4.957]
[1646455478147,0.1904,2625.9,2625.2,0.00215631]
[1646455478352,0.1904,2625.9,2625.4,1.09466923]
[1646455478592,0.00314911,2626.0,2625.5,0.457]
[1646455479393,0.00314911,2626.0,2625.6,0.00215598]
[1646455479593,0.00314911,2626.0,2625.7,0.457]
[1646455479797,0.00314911,2626.0,2625.4,1.0]
[1646455479994,0.00314911,2626.0,2625.5,0.457]
[1646455480196,0.00314911,2626.0,2625.6,0.457]
[1646455480498,0.00314911,2626.0,2625.7,0.457]
[1646455480696,0.00314911,2626.0,2625.8,0.457]
[1646455483753,1.04487353,2625.9,2625.8,0.457]
[1646455483954,1.04487353,2625.9,2625.4,0.457]
[1646455484153,1.04487353,2625.9,2624.9,5.48306565]
[1646455484154,1.04487353,2625.9,2625.2,0.457]
[1646455484353,1.04487353,2625.9,2624.5,3.5]
[1646455484354,1.04487353,2625.9,2625.5,0.00220473]
[1646455484554,11.65,2625.8,2625.5,0.00220473]
[1646455484953,1.04487353,2625.9,2624.8,0.25]
[1646455484954,0.00322937,2625.4,2624.8,0.25]
[1646455485156,0.00322937,2625.4,2624.7,0.457]
[1646455485757,1.00531618,2625.1,2624.7,0.457]
[1646455486093,13.79241618,2625.1,2624.1,0.25]
[1646455486290,13.79241618,2625.1,2624.1,0.707]
[1646455487089,1.12870037,2624.6,2624.1,0.707]
[1646455487290,1.12870037,2624.6,2624.1,0.457]
[1646455489090,4.92870037,2624.6,2624.2,0.00264649]
[1646455489936,4.92870037,2624.6,2623.9,1.5]
[1646455490138,4.92870037,2624.6,2624.3,0.00264648]
[1646455490837,3.8,2624.6,2624.3,0.00264648]
[1646455491240,3.8,2624.6,2623.9,1.957]
[1646455491438,3.8,2624.6,2624.3,0.00264646]
[1646455492038,3.8,2624.6,2624.3,0.45964646]
[1646455492537,3.8,2624.6,2624.3,0.457]
[1646455492741,3.8,2624.6,2624.3,0.45964646]
[1646455493599,3.8,2624.6,2624.3,0.457]
[1646455493801,3.8,2624.6,2624.4,0.04353071]
[1646455493997,3.8,2624.6,2624.5,0.457]
[1646455497200,3.8,2624.6,2624.5,3.957]
[1646455497639,3.8,2624.6,2624.5,5.3375]
[1646455498446,0.00322937,2625.4,2624.7,1.3332035]
[1646455498645,0.00322937,2625.4,2624.8,4.90971]
[1646455499046,0.00322937,2625.4,2624.8,5.90971]
[1646455499448,0.00322937,2625.4,2625.3,1.21360533]
[1646455499647,0.00322937,2625.4,2625.3,1.67060533]
[1646455500846,0.00322937,2625.4,2625.3,0.457]
[1646455504300,0.00322937,2625.4,2625.3,0.48905271]
[1646455506445,0.00322937,2625.4,2625.3,0.03205271]
[1646455508047,13.21567481,2625.4,2625.3,0.03205271]
[1646455508708,13.21567481,2625.4,2624.5,0.457]
[1646455508709,0.0462201,2625.2,2624.5,0.457]
[1646455509217,11.6962201,2625.2,2624.1,0.25]
[1646455509411,11.65,2625.0,2624.1,0.707]
[1646455509614,11.65,2625.0,2624.1,0.457]
[1646455509810,0.92302755,2624.7,2624.1,0.457]
[1646455512011,0.92302755,2624.7,2624.3,0.00264998]
[1646455512851,0.92302755,2624.7,2624.1,0.457]
[1646455513049,0.92302755,2624.7,2624.4,0.00264995]
[1646455513249,11.8867201,2625.2,2624.4,0.00264995]
[1646455513450,1.56267717,2625.1,2624.4,0.00264995]
[1646455513650,0.1904,2625.0,2624.4,0.00264995]
[1646455513849,0.1904,2625.0,2624.4,0.45964995]
[1646455514049,0.1904,2625.1,2624.4,0.457]
[1646455514253,0.07120033,2624.6,2624.4,0.457]
[1646455515452,0.07120033,2624.6,2624.4,0.45964995]
[1646455516290,0.07120033,2624.6,2624.4,0.457]
[1646455516689,0.07120033,2624.6,2624.4,0.45938309]
[1646455517490,0.07120033,2624.6,2624.4,0.457]
[1646455517892,0.07120033,2624.6,2624.4,0.45938309]
[1646455518692,0.07120033,2624.6,2624.4,0.457]
[1646455519094,0.07120033,2624.6,2624.4,0.45938309]
[1646455519847,0.63615578,2624.5,2624.4,0.45938309]
[1646455520140,0.63615578,2624.5,2624.4,0.4591682]
[1646455521146,0.63615578,2624.5,2624.4,0.457]
[1646455524190,0.66615867,2624.5,2624.4,0.457]
[1646455526998,0.66615867,2624.5,2624.4,3.957]
[1646455527442,0.66615867,2624.5,2624.4,1.457]
[1646455527645,0.66615867,2624.5,2624.4,4.957]
[1646455527840,0.66615867,2624.5,2624.4,1.457]
[1646455528041,0.66615867,2624.5,2624.4,4.957]
[1646455528241,0.66615867,2624.5,2624.4,1.457]
[1646455528542,0.66615867,2624.5,2624.4,4.957]
[1646455530945,0.66615867,2624.5,2624.4,6.11903317]
[1646455531211,0.66615867,2624.5,2624.4,2.61903317]
[1646455531412,0.66615867,2624.5,2624.4,1.457]
[1646455531611,0.66615867,2624.5,2624.4,0.457]
[1646455532318,0.66615867,2624.5,2624.3,0.00218356]
[1646455532512,0.94345421,2624.4,2624.3,0.00218356]
[1646455533112,0.94345421,2624.4,2624.0,0.457]
[1646455533311,1.57960999,2624.4,2624.0,0.457]
[1646455533513,1.57853524,2624.4,2624.0,0.457]
[1646455534515,1.57853524,2624.4,2623.6,0.707]
[1646455534716,1.57853524,2624.4,2623.6,0.457]
[1646455534717,13.22853524,2624.4,2623.6,0.457]
[1646455534946,0.94948547,2623.9,2623.6,0.457]
[1646455536746,0.63615578,2624.4,2623.6,0.457]
[1646455536945,0.63615578,2624.4,2623.6,0.45918394]
[1646455537746,1.71004645,2624.4,2623.6,0.45918394]
[1646455537946,1.71004645,2624.4,2623.6,0.457]
[1646455538146,1.90054645,2624.4,2623.9,0.00253063]
[1646455538346,1.26439067,2624.4,2623.9,0.45953063]
[1646455538593,0.63615578,2624.2,2623.9,0.45953063]
[1646455539194,0.63615578,2624.2,2623.9,0.457]
[1646455539394,0.63615578,2624.2,2623.9,0.45953058]
[1646455539994,0.63615578,2624.2,2623.9,0.40953058]
[1646455540395,0.63615578,2624.2,2623.9,0.407]
[1646455540597,0.63615578,2624.2,2623.9,0.40953058]
[1646455541598,0.63615578,2624.2,2623.9,0.407]
[1646455541799,0.63615578,2624.2,2623.9,0.40910568]
[1646455542942,0.63615578,2624.2,2623.9,0.407]
[1646455543141,0.63615578,2624.2,2623.9,0.40910568]
[1646455543547,1.73355578,2624.2,2623.9,0.40910568]
[1646455543746,0.02493102,2624.1,2623.9,0.40910568]
[1646455543945,0.63615578,2624.0,2623.9,0.407]
[1646455544146,1.81269337,2624.0,2623.9,0.407]
[1646455544348,2.76379337,2624.0,2623.9,0.00210568]
[1646455544748,4.32700863,2624.0,2623.9,0.00210568]
[1646455544950,0.00534027,2623.7,2623.0,0.25]
[1646455545148,0.00534027,2623.7,2622.9,0.00262669]
[1646455545348,0.00534027,2623.7,2622.7,0.457]
[1646455545552,0.00534027,2623.7,2622.8,0.00262669]
[1646455545948,1.10666727,2622.7,2622.5,0.45962669]
[1646455546192,1.10666727,2622.7,2622.6,0.00262669]
[1646455546394,1.10666727,2622.7,2622.4,0.457]
[1646455547094,4.0476,2623.4,2622.4,0.457]
[1646455547291,1.1821,2623.4,2622.5,0.00262669]
[1646455547492,1.1821,2623.4,2622.5,0.45962669]
[1646455548202,1.01051341,2622.7,2622.5,0.45962669]
[1646455548400,1.5626,2623.4,2622.5,0.457]
[1646455548598,1.1821,2623.4,2622.5,0.45962669]
[1646455549198,0.63615578,2623.0,2622.8,0.00265583]
[1646455549400,0.63615578,2623.0,2622.8,0.45965583]
[1646455550053,0.63615578,2623.0,2622.8,0.457]
[1646455550254,4.23615578,2623.0,2622.8,0.45965585]
[1646455551257,4.23615578,2623.0,2622.8,0.457]
[1646455551456,4.23615578,2623.0,2622.8,0.45965585]
[1646455551861,4.23615578,2623.0,2622.8,0.00265585]
[1646455551862,1.05277978,2622.9,2622.8,0.00265585]
[1646455552457,1.05277978,2622.9,2622.2,0.01699239]
[1646455552655,1.10270086,2622.4,2622.2,0.0143657]
[1646455553902,1.10270086,2622.4,2622.2,0.01686457]
[1646455554299,3.5,2622.8,2622.2,0.01686457]
[1646455554502,0.63615578,2622.3,2622.2,0.01686457]
[1646455554902,0.63615578,2622.3,2622.2,0.0143657]
[1646455555502,1.51800408,2622.3,2622.2,0.0143657]
[1646455557103,0.63615578,2622.3,2622.2,0.0143657]
[1646455558143,4.13615578,2622.3,2622.2,0.0143657]
[1646455558348,15.78615578,2622.3,2622.2,0.0143657]
[1646455559145,16.79302852,2622.3,2622.2,0.0143657]
[1646455559346,11.65,2622.1,2621.8,0.00262669]
[1646455559646,11.65,2622.1,2621.7,0.2666561]
[1646455559647,11.65,2621.9,2621.7,0.0166561]
[1646455559843,2.96332852,2622.3,2621.7,0.0166561]
[1646455559844,15.15,2621.8,2621.7,0.0166561]
[1646455560044,11.96807789,2621.8,2621.7,0.0166561]
[1646455560243,17.73867206,2621.8,2621.7,0.0166561]
[1646455560446,16.35,2621.7,2621.4,0.028719]
[1646455561700,3.5,2621.6,2621.4,0.028719]
[1646455561897,4.2,2621.2,2619.9,4.60212713]
[1646455562200,15.15,2621.1,2621.0,0.00264558]
[1646455562398,11.65,2621.1,2620.6,0.01734218]
[1646455562797,11.65,2620.9,2620.6,0.01734218]
[1646455562996,1.144971,2621.0,2620.6,0.01734218]
[1646455563198,0.1907,2621.3,2620.9,0.00997]
[1646455563596,2.5559,2621.4,2620.9,0.00997]
[1646455563800,2.3652,2621.4,2620.9,0.00997]
[1646455564597,0.21340212,2621.6,2620.9,0.00997]
[1646455564840,0.21340212,2621.6,2621.0,0.00080174]
[1646455565245,0.02270212,2621.6,2621.0,0.00080174]
[1646455565446,0.63615578,2621.3,2621.0,0.00080174]
[1646455565645,0.63615578,2621.3,2620.8,0.47442078]
[1646455565845,0.63615578,2621.3,2620.8,0.4717752]
[1646455566045,0.63615578,2621.3,2621.2,0.00265784]
[1646455566846,1.56405474,2621.3,2620.9,0.00264558]
[1646455567047,1.56405474,2621.3,2621.1,0.00265785]
[1646455567250,0.63615578,2621.3,2621.2,0.457]
[1646455568689,0.658339,2621.3,2621.2,0.457]
[1646455569093,0.658339,2621.3,2621.2,0.407]
[1646455571501,0.63615578,2621.3,2621.2,0.407]
[1646455572639,0.63615578,2621.3,2621.2,1.56482867]
[1646455573339,2.8816,2622.2,2621.5,0.95392]
[1646455573539,0.13819996,2622.3,2621.5,0.95392]
[1646455573540,0.13819996,2622.3,2621.6,0.457]
[1646455574539,1.27214629,2622.3,2621.8,0.00265335]
[1646455574740,1.27214629,2622.3,2621.9,0.457]
[1646455574944,0.13819996,2622.3,2621.9,0.457]
[1646455575346,0.1905,2622.7,2621.9,0.457]